fUSD/lending_fUSD_20240404
["ID","MTS","AMOUNT","RATE_DAILY","PERIOD"]
[321471602,1712205106531,-2487.96,0.00052876,120]
[321471603,1712205106540,-614.81269397,0.00052876,120]
[321471604,1712205106550,-1278.23,0.00052876,120]
[321471605,1712205106560,-2504.56,0.00052876,21]
[321471606,1712205106569,-2979.25,0.00052876,120]
[321471607,1712205106578,-2892.04,0.00052876,120]
[321471608,1712205106587,-1123.71,0.00052876,120]
[321471609,1712205106596,-1307.57,0.00052876,120]
[321471610,1712205106605,-5569.8,0.00052876,120]
[321471611,1712205106615,-3337.52,0.00052876,120]
[321471612,1712205106624,-929.17,0.00052876,120]
[321471613,1712205106634,-1125.88,0.00052876,120]
[321471614,1712205106643,-531.5,0.00052876,120]
[321471615,1712205106652,-1352.42,0.00052876,120]
[321471616,1712205106661,-1122.07,0.00052876,120]
[321471617,1712205106671,-500.0,0.00052876,120]
[321471618,1712205106680,-1213.04,0.00052876,120]
[321471619,1712205106690,-500.0,0.00052876,2]
[321471620,1712205106699,-2053.81,0.00052876,120]
[321471621,1712205106708,-1165.99,0.00052876,120]
[321471622,1712205106717,-5718.06,0.00052876,120]
[321471623,1712205106727,-20056.54,0.00052876,120]
[321471624,1712205106736,-724.94,0.00052876,120]
[321471625,1712205106747,-4945.29,0.00052876,120]
[321471626,1712205106756,-1452.87,0.00052876,120]
[321471627,1712205106766,-500.0,0.00052876,120]
[321471628,1712205106775,-3353.7,0.00052876,120]
[321471629,1712205106784,-1029.43,0.00052876,120]
[321471630,1712205106794,-2841.02,0.00052876,120]
[321471631,1712205106803,-4342.51,0.00052876,120]
[321471632,1712205106814,-2140.05,0.00052876,120]
[321471633,1712205106823,-500.0,0.00052876,120]
[321471634,1712205106833,-575.65364256,0.00052876,120]
[321471635,1712205106842,-1521.74,0.00052876,120]
[321471636,1712205106851,-421.08803178,0.00052876,120]
[321471637,1712205106860,-4169.84,0.00052876,120]
[321471638,1712205106869,-509.61,0.00052876,120]
[321471639,1712205106879,-2080.39,0.00052876,120]
[321471640,1712205106888,-500.0,0.00052876,120]
[321471641,1712205106897,-705.27,0.00052876,120]
[321471642,1712205106906,-6271.8,0.00052876,120]
[321471643,1712205106915,-500.0,0.00052876,2]
[321471644,1712205106925,-500.0,0.00052876,120]
[321471645,1712205106934,-1236.67,0.00052876,120]
[321471646,1712205106943,-2450.71,0.00052876,120]
[321471647,1712205106952,-500.0,0.00052876,120]
[321471648,1712205106961,-1883.85,0.00052876,120]
[321471649,1712205106971,-540.54,0.00052876,120]
[321471650,1712205106981,-655.25,0.00052876,120]
[321471651,1712205106989,-1887.51,0.00052876,120]
[321471652,1712205107000,-10485.55,0.00052876,120]
[321471653,1712205107009,-500.0,0.00052876,120]
[321471654,1712205107018,-22847.33843952,0.00052877,2]
[321471655,1712205107027,-604.22994504,0.00052881,60]
[321471656,1712205107036,-250.0,0.000529,120]
[321471657,1712205107046,-28064.20432399,0.000529,60]
[321471658,1712205107055,-211.99904312,0.00052903,60]
[321471659,1712205107065,-388.42808272,0.0005291,60]
[321471660,1712205107075,-388.42808272,0.00052924,60]
[321471661,1712205107085,-388.42808272,0.00052974,60]
[321471662,1712205107094,-90000.0,0.00053,10]
[321471663,1712205107104,-1000.0,0.00053,120]
[321471664,1712205107113,-10395.62719499,0.00053,7]
[321471665,1712205107123,-569.57168499,0.00053,2]
[321471666,1712205107132,-5684.92906232,0.00053,30]
[321471667,1712205107141,-999.0,0.00053,100]
[321471668,1712205107151,-2100.0,0.00053,30]
[321471669,1712205107161,-950.0,0.00053,120]
[321471670,1712205107171,-388.42808272,0.00053003,60]
[321471671,1712205107181,-197.97595336,0.00053008,60]
[321471672,1712205107190,-701.12911996,0.00053014,120]
[321471673,1712205107200,-350.56455998,0.00053014,120]
[321471674,1712205107210,-292.23916669,0.00053029,60]
[321471675,1712205107220,-154.78369154,0.00053046,60]
[321471676,1712205107230,-292.23916669,0.00053059,60]
[321471677,1712205107241,-197.97595336,0.00053067,60]
[321471678,1712205107252,-510.18312938,0.00053073,60]
[321471679,1712205107262,-6071.4683173,0.00053114,2]
[321471680,1712205107272,-604.22994504,0.00053114,60]
[321471681,1712205107284,-197.97595336,0.00053126,60]
[321471682,1712205107293,-197.97595336,0.00053138,60]
[321471683,1712205107303,-288483.8458697,0.0005314,30]
[321471684,1712205107360,-9013.802242,0.0005314,30]
[321471685,1712205107371,-9823.79195533,0.0005314,30]
[321471686,1712205107382,-2200.48612496,0.0005314,30]
[321471687,1712205107393,-20994.96,0.0005314,30]
[321471688,1712205107404,-256.12711472,0.0005314,30]
[321471689,1712205107979,-150.59,0.00023646,2]
[321471690,1712205107989,-314.71985634,0.000248,2]
[321471691,1712205107999,-210.6222546,0.0002489,2]
[321471692,1712205108009,-210.6222546,0.0002499,2]
[321471693,1712205108019,-150.73,0.00041,2]
[321471694,1712205108029,-150.73,0.00041,2]
[321471695,1712205108038,-150.73,0.00041,2]
[321471696,1712205108056,-150.73,0.00041,2]
[321471697,1712205108066,-150.73,0.00041,2]
[321471698,1712205108075,-150.73,0.00041,2]
[321471699,1712205108085,-150.73,0.00041,2]
[321471700,1712205108095,-150.73,0.00041,2]
[321471701,1712205108105,-150.73,0.00041,2]
[321471702,1712205108115,-150.73,0.00041,2]
[321471703,1712205108124,-150.73,0.00041,2]
[321471704,1712205108133,-3091.70507259,0.0005,12]
[321471705,1712205108269,-150.59,0.00023822,2]
[321471706,1712205108283,-150.73,0.00041,2]
[321471707,1712205108292,-1358.99345773,0.0005,12]
[321471708,1712205108330,-282.41210969,0.0005,12]
[321471709,1712205108341,-639.03897019,0.0005,12]
[321471710,1712205108766,-150.59,0.00023998,2]
[321471711,1712205108775,-150.59,0.00024174,2]
[321471712,1712205108785,-150.59,0.0002435,2]
[321471713,1712205108795,-150.59,0.00024526,2]
[321471714,1712205108809,-150.59,0.00024702,2]
[321471715,1712205108819,-656.68118,0.00040709,14]
[321471716,1712205108829,-656.68118,0.00040709,14]
[321471717,1712205108840,-150.73,0.00041,2]
[321471718,1712205108850,-150.73,0.00041,2]
[321471719,1712205108860,-2963.0,0.00045763,2]
[321471720,1712205108870,-336.93555136,0.00046244,14]
[321471721,1712205108900,-319.74562864,0.00046244,14]
[321471722,1712205108911,-1437.112,0.00048763,2]
[321471723,1712205108922,-656.68118,0.00049,14]
[321471724,1712205108932,-36846.91161224,0.0005,12]
[321471725,1712205108942,-41694.18077868,0.0005,12]
[321471726,1712205108955,-524.88044376,0.0005,12]
[321471727,1712205108965,-2166.82518271,0.0005,12]
[321471728,1712205108978,-326.82014577,0.0005,12]
[321471729,1712205108990,-4133.50495721,0.0005,12]
[321471730,1712205109002,-1670.65542795,0.0005,12]
[321471731,1712205109025,-651.23,0.0004949,120]
[321471732,1712205109051,-5.45118,0.0004949,120]
[321471733,1712205109062,-3253.35437,0.0005,12]
[321471734,1712205109660,-362.36200002,0.00024799,2]
[321471735,1712205109673,-281.16999366,0.00024799,2]
[321471736,1712205109760,-230.7737331,0.00024799,2]
[321471737,1712205109770,-314.71985634,0.000249,2]
[321471738,1712205109780,-656.68118,0.00040709,14]
[321471739,1712205109790,-656.68118,0.00040709,14]
[321471740,1712205109801,-401.372,0.00045763,2]
[321471741,1712205109811,-1493.522,0.00045763,2]
[321471742,1712205109821,-656.68118,0.00046244,14]
[321471743,1712205109831,-397.0,0.00048763,2]
[321471744,1712205109842,-656.68118,0.00049,14]
[321471745,1712205109852,-656.68118,0.0004949,120]
[321471746,1712205109862,-5070.76798703,0.0005,12]
[321471747,1712205109929,-396.18887518,0.0005,12]
[321471748,1712205109941,-863.5175982,0.0005,12]
[321471749,1712205110390,-24337.42667839,0.0005,12]
[321471750,1712205110400,-42219.06122244,0.0005,12]
[321471751,1712205110410,-11202.8707753,0.0005,12]
[321471752,1712205110421,-18100.000001,0.0005,12]
[321471753,1712206038338,-155.6195763,0.00024797,2]
[321471754,1712206038362,-300.0,0.00024797,2]
[321471755,1712206038385,-2064.51246302,0.00024798,2]
[321471756,1712206038406,-11775.63571237,0.00024798,2]
[321471757,1712206038427,-282.60423576,0.00024799,2]
[321471758,1712206038450,-420.0,0.00027277,2]
[321471759,1712206038470,-560.73809275,0.00029,2]
[321471760,1712206038492,-441.09329125,0.000295,3]
[321471761,1712206038514,-348.38136544,0.0003,4]
[321471762,1712206038540,-3206.28076084,0.0003,2]
[321471763,1712206038560,-299.99,0.0003,12]
[321471764,1712206038581,-499.99,0.0003,2]
[321471765,1712206038601,-587.0,0.00030004,2]
[321471766,1712206038625,-331.73521384,0.00032,4]
[321471767,1712206038645,-156.25,0.00032877,2]
[321471768,1712206038666,-156.25,0.00032877,2]
[321471769,1712206038687,-823.0,0.00033005,2]
[321471770,1712206038708,-150.0,0.00034548,10]
[321471771,1712206038728,-2811.73294493,0.000348,4]
[321471772,1712206038749,-1281.5331215,0.00035,4]
[321471773,1712206038770,-1152.0,0.00036305,2]
[321471774,1712206038793,-490.11815053,0.000385,4]
[321471775,1712206038814,-4217.35401839,0.000388,2]
[321471776,1712206038833,-4065.34553289,0.000389,15]
[321471777,1712206038854,-1005.51488112,0.00039,120]
[321471778,1712206038876,-1613.0,0.00039936,3]
[321471779,1712206038896,-3664.75384173,0.0003999,2]
[321471780,1712206038916,-965.66,0.0004,30]
[321471781,1712206038937,-192.76675003,0.0004,2]
[321471782,1712206038957,-5758.8947196,0.0004,4]
[321471783,1712206038978,-22103.7237332,0.0004,4]
[321471784,1712206038998,-547.14230713,0.0004,4]
[321471785,1712206039024,-279.8934342,0.00040153,2]
[321471786,1712206039046,-996.74,0.000406,2]
[321471787,1712206039067,-295.63,0.00041893,2]
[321471788,1712206039088,-996.74,0.00042195,2]
[321471789,1712206039109,-156.25,0.00043288,2]
[321471790,1712206039130,-150.0,0.00043322,2]
[321471791,1712206039150,-2483.29155375,0.00043427,2]
[321471792,1712206064303,250.0,0.00023,3]
[321471795,1712206232010,-2035.7176594,0.00024999,2]
[321471796,1712206232021,-142.17851207,0.00025,3]
[321471876,1712206238068,-157.82148793,0.00025,3]
[321471877,1712206238078,-350.0,0.00027,3]
[321471878,1712206238087,-400.0,0.00029,3]
[321471879,1712206238097,-450.0,0.00031,3]
[321471880,1712206238107,-500.0,0.00033,3]
[321471881,1712206238116,-3206.28076084,0.00034999,2]
[321471882,1712206238125,-550.0,0.00035,3]
[321471883,1712206238134,-1281.5331215,0.00036996,4]
[321471884,1712206238144,-331.73521384,0.00036997,4]
[321471885,1712206238153,-499.99,0.00036997,2]
[321471886,1712206238163,-400.0,0.00036999,2]
[321471887,1712206238173,-600.0,0.00037,3]
[321471888,1712206238182,-490.11815053,0.000385,4]
[321471889,1712206238192,-500.0,0.000387,2]
[321471890,1712206238202,-2952.14781287,0.000388,2]
[321471891,1712206238212,-489.64310877,0.000389,15]
[321471892,1712206238261,-3575.70242412,0.000389,15]
[321471893,1712206238270,-650.0,0.00039,3]
[321471894,1712206238280,-593.70336624,0.0003925,7]
[321471895,1712206238289,-5758.8947196,0.0004,4]
[321471896,1712206238299,-192.76675003,0.0004,2]
[321471897,1712206238309,-22103.7237332,0.0004,4]
[321471898,1712206238318,-150.0,0.00040345,2]
[321471899,1712206238328,-150.0,0.00040345,2]
[321471900,1712206238337,-200.0,0.00040345,2]
[321471901,1712206238347,-1003.92,0.000406,2]
[321471902,1712206238360,-560.0,0.00040699,3]
[321471903,1712206238370,-700.0,0.00041,3]
[321471904,1712206238379,-547.14230713,0.00041428,4]
[321471905,1712206238389,-1003.92,0.0004229,2]
[321471906,1712206238398,-741.28747808,0.00042458,2]
[321471908,1712206238407,-1014.21997938,0.00042558,2]
[321471910,1712206238417,-4373.81716003,0.00043,7]
[321471911,1712206238426,-1172.05844625,0.00043427,2]
[321471913,1712206238435,-200.0,0.00043427,2]
[321471915,1712206238445,-256.04237772,0.00043427,30]
[321471917,1712206238456,-3353.30355716,0.00043427,4]
[321471918,1712206238465,-175.27557722,0.00043427,2]
[321471919,1712206238475,-389.43740372,0.00043427,15]
[321471920,1712206238485,-653.27182698,0.00043427,30]
[321471921,1712206238494,-175.27557722,0.00043427,2]
[321471923,1712206238504,-175.27557722,0.00043427,2]
[321471924,1712206238514,-152.0,0.00043466,3]
[321471925,1712206238523,-183.0,0.00043467,2]
[321471926,1712206238532,-500.0,0.00043501,2]
[321471927,1712206238542,-200.48660335,0.00043611,4]
[321471928,1712206238551,-160.50076302,0.00043612,4]
[321471929,1712206238561,-23900.0,0.00043613,2]
[321471930,1712206238570,-250.0,0.00043619,112]
[321471931,1712206238581,-209.19,0.00043749,2]
[321471932,1712206238591,-624.03,0.00043758,15]
[321471933,1712206238601,-200.0,0.00043769,2]
[321471934,1712206238611,-1000.0,0.00043797,2]
[321471935,1712206238621,-1162.81,0.000438,2]
[321471936,1712206238632,-162.66,0.00043836,2]
[321471937,1712206238641,-2342.61,0.00043879,2]
[321471938,1712206238651,-500.0,0.0004396,2]
[321471939,1712206238660,-1003.92,0.0004398,2]
[321471940,1712206238671,-6545.462,0.00044,30]
[321471941,1712206238681,-150.0,0.00044,44]
[321471942,1712206238690,-4619.62138476,0.00044133,2]
[321471943,1712206238702,-295.63,0.00044157,2]
[321471944,1712206238712,-150.0,0.00044479,2]
[321471945,1712206238722,-152.0,0.00044568,4]
[321471946,1712206238732,-783.0,0.00044769,3]
[321471947,1712206238741,-886.60018933,0.00044986,4]
[321471948,1712206238750,-328.47719203,0.00045,4]
[321471949,1712206238760,-150.0,0.00045636,2]
[321471950,1712206238770,-1003.92,0.0004567,2]
[321471951,1712206238779,-152.0,0.00045671,5]
[321471952,1712206238789,-156.25,0.0004589,2]
[321471953,1712206238799,-741.28747807,0.00045936,2]
[321471954,1712206238808,-295.63,0.00046421,2]
[321471955,1712206238818,-624.03,0.00046498,15]
[321471956,1712206238828,-152.0,0.00046774,6]
[321471957,1712206238837,-150.0,0.00046794,2]
[321471958,1712206238848,-205.56428398,0.00046819,7]
[321471959,1712206238857,-1003.92,0.0004736,2]
[321471960,1712206238867,-1916.0,0.000477,2]
[321471961,1712206238876,-155.78153648,0.00047827,30]
[321471962,1712206238886,-152.59674678,0.00047834,30]
[321471963,1712206238896,-157.64312321,0.00047838,30]
[321471964,1712206238905,-221.55097984,0.0004784,30]
[321471965,1712206238914,-153.98129707,0.00047872,30]
[321471966,1712206238924,-152.0,0.00047876,7]
[321471967,1712206238933,-153.89032084,0.00047891,30]
[321471968,1712206238943,-221.55097984,0.00047921,30]
[321471969,1712206238954,-153.98129707,0.00047928,30]
[321471970,1712206238963,-162.66,0.00047945,2]
[321471971,1712206238973,-150.0,0.00047951,2]
[321471972,1712206238982,-151.15818966,0.00047967,30]
[321471973,1712206238991,-151.15818966,0.00048007,30]
[321471974,1712206239001,-1184.34,0.00048029,2]
[321471975,1712206239012,-180.0,0.00048124,120]
[321471976,1712206239022,-155.78153648,0.00048138,30]
[321471977,1712206239031,-152.59674678,0.00048187,30]
[321471978,1712206239042,-153.89032084,0.00048252,30]
[321471979,1712206239051,-155.78153648,0.00048255,30]
[321471980,1712206239063,-155.78153648,0.00048327,30]
[321471981,1712206239073,-154.06850799,0.0004833,30]
[321471982,1712206239083,-155.36097392,0.00048356,30]
[321471983,1712206239094,-221.55097984,0.00048362,30]
[321471984,1712206239104,-151.15818966,0.00048419,30]
[321471985,1712206239114,-152.59674678,0.00048444,30]
[321471986,1712206239123,-221.55097984,0.00048457,30]
[321471987,1712206239133,-152.59674678,0.00048494,30]
[321471988,1712206239143,-221.55097984,0.00048499,30]
[321471989,1712206239152,-153.98129707,0.00048574,30]
[321471990,1712206239162,-812.513,0.00048575,2]
[321471991,1712206239171,-1270.0,0.00048575,2]
[321471992,1712206239180,-606.0,0.00048575,2]
[321471993,1712206239190,-279.0,0.00048575,2]
[321471994,1712206239200,-434.0,0.00048575,2]
[321471995,1712206239210,-1650.497,0.00048575,2]
[321471996,1712206239219,-150.0,0.00048575,2]
[321471997,1712206239229,-1466.0,0.00048575,2]
[321471998,1712206239238,-164.324,0.00048575,2]
[321471999,1712206239248,-175.542,0.00048575,2]
[321472000,1712206239258,-150.0,0.00048575,2]
[321472001,1712206239267,-250.0,0.00048575,2]
[321472002,1712206239277,-153.89032084,0.00048589,30]
[321472003,1712206239286,-221.55097984,0.0004861,30]
[321472004,1712206239296,-155.78153648,0.0004868,30]
[321472005,1712206239306,-295.63,0.00048685,2]
[321472006,1712206239315,-152.59674678,0.00048726,30]
[321472007,1712206239325,-158.99928235,0.00048757,30]
[321472008,1712206239334,-221.55097984,0.00048827,30]
[321472009,1712206239343,-152.59674678,0.00048847,30]
[321472010,1712206239353,-155.78153648,0.00048849,30]
[321472011,1712206239362,-154.29714744,0.0004889,30]
[321472012,1712206239372,-152.0,0.00048979,8]
[321472013,1712206239381,-2516.0,0.00049,7]
[321472014,1712206239390,-1065.78335667,0.00049,5]
[321472015,1712206239399,-1037.67586584,0.00049,5]
[321472016,1712206239409,-221.55097984,0.00049014,30]
[321472017,1712206239419,-158.99928235,0.00049023,30]
[321472018,1712206239429,-221.55097984,0.00049043,30]
[321472019,1712206239438,-1003.92,0.0004905,2]
[321472020,1712206239447,-154.06850799,0.00049055,30]
[321472021,1712206239457,-150.0,0.00049108,2]
[321472022,1712206239467,-160.20412195,0.00049127,30]
[321472023,1712206239476,-157.64312321,0.00049201,30]
[321472024,1712206239485,-153.98129707,0.00049234,30]
[321472025,1712206239494,-624.03,0.00049238,15]
[321472026,1712206239503,-1097.0,0.00049246,3]
[321472027,1712206239512,-1000.0,0.00049271,2]
[321472028,1712206239522,-243.57581149,0.00049314,4]
[321472029,1712206239531,-214.6091896,0.00049315,30]
[321472030,1712206239541,-666.0,0.00049315,2]
[321472031,1712206239550,-1000.0,0.00049315,7]
[321472032,1712206239560,-1000.0,0.00049315,7]
[321472033,1712206239648,-1000.0,0.00049315,7]
[321472034,1712206239658,-1000.0,0.00049315,7]
[321472035,1712206239668,-1000.0,0.00049315,7]
[321472036,1712206239677,-1000.0,0.00049315,7]
[321472037,1712206239687,-506.0,0.00049315,7]
[321472038,1712206239696,-153.89032084,0.00049323,30]
[321472039,1712206239706,-1000.0,0.00049388,2]
[321472040,1712206239716,-1095.6091,0.0004939,2]
[321472041,1712206239725,-764.703,0.0004939,2]
[321472042,1712206239734,-500.0,0.0004939,2]
[321472043,1712206239743,-741.28747807,0.00049413,2]
[321472044,1712206239752,-158.99928235,0.00049425,30]
[321472045,1712206239762,-152.59674678,0.00049463,30]
[321472046,1712206239770,-156.17754037,0.00049478,30]
[321472047,1712206239780,-151.29625457,0.00049481,30]
[321472048,1712206239789,-153.89032084,0.00049487,30]
[321472049,1712206239799,-155.01150722,0.00049488,3]
[321472050,1712206239809,-7124.98379098,0.00049488,2]
[321472051,1712206239818,-2600.3152557,0.00049488,4]
[321472052,1712206239827,-906.74899854,0.00049488,4]
[321472054,1712206239839,-2275.50323,0.00049488,4]
[321472055,1712206239848,-2979.13899308,0.00049488,60]
[321472056,1712206239858,-1386.47814704,0.00049488,4]
[321472057,1712206239868,-354.91,0.00049489,15]
[321472058,1712206239878,-354.91,0.00049489,15]
[321472059,1712206239888,-354.91,0.00049489,15]
[321472060,1712206239898,-354.91,0.00049489,15]
[321472061,1712206239907,-354.91,0.00049489,15]
[321472062,1712206239917,-354.91,0.00049489,15]
[321472063,1712206239928,-354.91,0.00049489,15]
[321472064,1712206239938,-354.91,0.00049489,15]
[321472065,1712206239947,-354.93,0.00049489,15]
[321472066,1712206239962,-354.93,0.00049489,15]
[321472067,1712206239971,-1685.46,0.00049489,60]
[321472068,1712206239984,-217649.498625,0.0004949,15]
[321472069,1712206239993,-500.0,0.00049588,90]
[321472070,1712206240003,-500.0,0.00049588,90]
[321472071,1712206240012,-394.34,0.00049599,15]
[321472072,1712206240021,-152.59674678,0.00049607,30]
[321472073,1712206240032,-153.98129707,0.00049685,30]
[321472074,1712206240041,-13518.84,0.00049699,120]
[321472075,1712206240050,-13518.84,0.00049699,120]
[321472076,1712206240059,-152.15,0.000497,6]
[321472077,1712206240068,-152.15,0.000497,6]
[321472078,1712206240078,-152.15,0.000497,6]
[321472079,1712206240088,-152.15,0.000497,6]
[321472080,1712206240097,-152.15,0.000497,6]
[321472081,1712206240107,-152.15,0.000497,6]
[321472082,1712206240116,-152.15,0.000497,6]
[321472083,1712206240126,-4246.86,0.000497,6]
[321472084,1712206240136,-4246.86,0.000497,6]
[321472085,1712206240146,-4246.86,0.000497,6]
[321472086,1712206240155,-4246.86,0.000497,6]
[321472087,1712206240165,-4246.86,0.000497,6]
[321472088,1712206240175,-4246.86,0.000497,6]
[321472089,1712206240185,-4246.86,0.000497,6]
[321472090,1712206240195,-4246.86,0.000497,6]
[321472091,1712206240211,-4246.86,0.000497,6]
[321472092,1712206240221,-4246.86,0.000497,6]
[321472093,1712206240232,-4246.86,0.000497,6]
[321472094,1712206240242,-4246.86,0.000497,6]
[321472095,1712206240251,-4246.86,0.000497,6]
[321472096,1712206240261,-4246.86,0.000497,6]
[321472097,1712206240271,-4246.86,0.000497,6]
[321472098,1712206240281,-4246.86,0.000497,6]
[321472099,1712206240291,-4246.86,0.000497,6]
[321472100,1712206240301,-4246.86,0.000497,6]
[321472101,1712206240310,-4246.86,0.000497,6]
[321472102,1712206240320,-4246.86,0.000497,6]
[321472103,1712206240330,-151.15818966,0.00049721,30]
[321472104,1712206240340,-221.55097984,0.00049743,30]
[321472105,1712206240350,-151.15818966,0.00049766,30]
[321472106,1712206240359,-155.78153648,0.00049848,30]
[321472107,1712206240368,-151.15818966,0.00049869,30]
[321472108,1712206240378,-221.55097984,0.0004987,30]
[321472109,1712206240389,-221.55097984,0.00049885,30]
[321472110,1712206240399,-153.62296114,0.000499,30]
[321472111,1712206240410,-153.98129707,0.00049907,30]
[321472112,1712206240420,-8165.6213153,0.00049948,60]
[321472113,1712206240430,-153.43627197,0.00049968,30]
[321472114,1712206240440,-614.46931586,0.00049987,4]
[321472115,1712206240455,-155.0,0.00049998,4]
[321472116,1712206240464,-204.31218353,0.00049998,120]
[321472118,1712206240474,-2640.21942399,0.00049998,4]
[321472120,1712206240483,-2535.56550541,0.00049999,4]
[321472122,1712206240492,-187.35599653,0.00049999,14]
[321472124,1712206240501,-298.98289609,0.00049999,2]
[321472126,1712206240510,-155.16557422,0.0005,2]
[321472128,1712206240520,-1421.73675848,0.0005,21]
[321472130,1712206240529,-27100.9070143,0.0005,4]
[321472132,1712206240538,-644.05783253,0.0005,90]
[321472134,1712206240547,-4378.9904888,0.0005,120]
[321472136,1712206240556,-541.51223081,0.0005,28]
[321472138,1712206240565,-10418.17598975,0.0005,5]
[321472140,1712206240575,-170.29193997,0.0005,7]
[321472142,1712206240584,-1000.0,0.0005,20]
[321472144,1712206240596,-1000.0,0.0005,20]
[321472146,1712206240606,-1000.0,0.0005,20]
[321472148,1712206240616,-1000.0,0.0005,3]
[321472150,1712206240625,-1000.0,0.0005,3]
[321472152,1712206240634,-161.54266328,0.0005,30]
[321472154,1712206240643,-1000.0,0.0005,3]
[321472156,1712206240652,-30088.0,0.0005,2]
[321472158,1712206240661,-1019.0,0.0005,3]
[321472160,1712206240671,-1009.0,0.0005,2]
[321472162,1712206240680,-155.78153648,0.00050068,60]
[321472164,1712206240689,-152.0,0.00050082,9]
[321472166,1712206240703,-500.0,0.00050136,90]
[321472168,1712206240713,-500.0,0.00050136,90]
[321472170,1712206240722,-151.15818966,0.00050163,60]
[321472172,1712206240732,-155.78153648,0.00050257,60]
[321472174,1712206240742,-150.0,0.00050265,2]
[321472176,1712206240751,-155.36097392,0.00050284,60]
[321472178,1712206240761,-1685.46,0.00050311,64]
[321472179,1712206240771,-158.99928235,0.00050324,60]
[321472181,1712206240780,-151.15818966,0.00050353,60]
[321472184,1712206240789,-221.55097984,0.00050385,60]
[321472185,1712206240798,-152.59674678,0.00050386,60]
[321472187,1712206240807,-1916.86428338,0.000504,2]
[321472189,1712206240817,-151.29625457,0.00050418,60]
[321472191,1712206240826,-155.78153648,0.00050434,60]
[321472194,1712206240837,-151.15818966,0.00050446,60]
[321472196,1712206240846,-155.78153648,0.0005046,60]
[321472197,1712206240855,-151.15818966,0.0005054,60]
[321472200,1712206240865,-153.89032084,0.00050634,60]
[321472201,1712206240874,-154.06850799,0.00050668,60]
[321472204,1712206240883,-500.0,0.00050684,90]
[321472206,1712206240892,-509.5541918,0.00050684,90]
[321472207,1712206240901,-1003.92,0.0005074,2]
[321472210,1712206240910,-171.2,0.0005094,120]
[321472211,1712206240919,-153.98129707,0.00050945,60]
[321472213,1712206240929,-295.63,0.00050949,2]
[321472215,1712206240938,-8836.29070316,0.0005095,2]
[321472218,1712206240947,-221.55097984,0.00050953,60]
[321472220,1712206240960,-500.0,0.00050958,90]
[321472221,1712206240969,-690.6,0.00051,7]
[321472223,1712206240978,-1000.0,0.00051,7]
[321472225,1712206240987,-1000.0,0.00051,7]
[321472227,1712206240997,-1000.0,0.00051,20]
[321472229,1712206241006,-1000.0,0.00051,20]
[321472231,1712206241015,-1000.0,0.00051,30]
[321472233,1712206241024,-1000.0,0.00051,30]
[321472235,1712206241034,-1000.0,0.00051,30]
[321472237,1712206241043,-1000.0,0.00051,30]
[321472239,1712206241052,-1000.0,0.00051,30]
[321472241,1712206241061,-1000.0,0.00051,30]
[321472243,1712206241070,-1000.0,0.00051,30]
[321472245,1712206241079,-1000.0,0.00051,30]
[321472247,1712206241088,-1000.0,0.00051,30]
[321472249,1712206241097,-1000.0,0.00051,30]
[321472251,1712206241106,-1000.0,0.00051,30]
[321472252,1712206241116,-1000.0,0.00051,30]
[321472255,1712206241125,-1000.0,0.00051,30]
[321472256,1712206241135,-1000.0,0.00051,30]
[321472259,1712206241144,-1000.0,0.00051,30]
[321472261,1712206241153,-1000.0,0.00051,30]